[Event "1000GM Schev-C-A February 2024"]
[Site "Santa Clara"]
[Date "2024.02.25"]
[Round "3.4"]
[White "Zuluaga Mancilla, Cesar"]
[Black "Rajaram, Rohan"]
[Result "1/2-1/2"]
[ECO "D45"]
[WhiteElo "2251"]
[BlackElo "2151"]
[Annotator "TA"]
[PlyCount "114"]
[EventDate "2024.02.13"]
[EventType "schev"]
[EventCountry "USA"]
[SourceTitle "playchess.com"]
[Source "ChessBase"]
[SourceQuality "1"]
[TimeControl "5400+30"]

{[%evp 23,114,0,0,0,0,0,0,-4,0,0,6,0,0,0,13,11,10,0,9,9,13,0,29,19,48,52,38,31,58,50,49,12,62,86,78,45,44,36,47,67,70,42,42,42,42,42,42,42,42,42,41,41,41,41,41,41,41,41,41,41,41,41,47,15,15,15,15,9,9,0,0,0,0,0,0,0,0,0,0,0,0,0,0,0,0,0,0,0,0,0,0,0,0]} 1. d4 {[%emt 0:08:23]} d5 {[%emt 0:00:07]} 2. c4 {[%emt 0:00:03]} c6 {[%emt 0:00:06]} 3. e3 {[%emt 0:01:16]} Nf6 {[%emt 0:00:19]} 4. Nc3 {[%emt 0:00:08]} e6 {[%emt 0:00:19]} 5. Nf3 {[%emt 0:00:14]} Nbd7 {[%emt 0:00:07]} 6. Qc2 {[%emt 0:00:31]} Bd6 {[%emt 0:00:40]} 7. b3 {[%emt 0:00:20]} O-O {[%emt 0:00:50]} 8. Bb2 {[%emt 0:00:09]} b6 {[%emt 0:00:50]} 9. Be2 {[%emt 0:05:10]} Bb7 {[%emt 0:00:18]} 10. O-O {[%emt 0:00:09]} Re8 {[%emt 0:02:18]} 11. Rfd1 {[%emt 0:00:08]} Rc8 {[%emt 0:00:12]} 12. Rac1 {[%emt 0:00:12]} Qe7 {[%emt 0:00:57]} 13. Qb1 {[%emt 0:00:25]} a6 {[%emt 0:05:59]} 14. h3 {[%emt 0:03:53]} h6 {[%emt 0:07:31]} 15. Qa1 {[%emt 0:01:04]} Bb8 {[%emt 0:03:23]} 16. a4 {[%emt 0:06:07]} a5 {[%emt 0:00:12]} 17. cxd5 {[%emt 0:00:27]} exd5 {[%emt 0:01:05]} 18. Ba3 {[%emt 0:00:48]} Bd6 {[%emt 0:05:08]} 19. Bxd6 {[%emt 0:01:05]} Qxd6 {[%emt 0:00:07]} 20. Qb2 {[%emt 0:00:22]} Qe7 {[%emt 0:06:53]} 21. Bd3 {[%emt 0:01:20]} Qd6 {[%emt 0:07:26]} 22. Rc2 {[%emt 0:01:54]} c5 {[%emt 0:03:57]} 23. Nb5 {[%emt 0:05:52]} Qb8 {[%emt 0:01:45]} 24. Bf5 {[%emt 0:02:51]} g6 {[%emt 0:01:21]} 25. Bd3 {[%emt 0:00:34]} Ne4 {[%emt 0:04:41]} 26. Bxe4 {[%emt 0:01:24]} dxe4 {[%emt 0:00:27]} 27. Nh2 {[%emt 0:09:46][%cal Bf3h2,Bh2f1,Bf1g3][%mdl 32] Excellent horsemanship.} (27. Nd2 $5) 27... Rcd8 {[%emt 0:09:21]} (27... h5 $11) 28. Rcd2 $14 {[%emt 0:00:57] [#] And now dxc5 would win.} h5 {[%emt 0:03:37][%cal Bh6h5,Bh5h4][%mdl 32]} 29. Nf1 {[%emt 0:03:30]} Ba6 {[%emt 0:02:44]} 30. Ng3 {[%emt 0:05:13]} Bxb5 {[%emt 0:01:22]} 31. axb5 {[%emt 0:00:01]} h4 {[%emt 0:02:25] [#]} 32. Nxe4 {[%emt 0:01:48]} Rxe4 {[%emt 0:00:05]} 33. dxc5 {[%emt 0:00:04]} bxc5 {[%emt 0:00:07]} 34. Rxd7 {[%emt 0:00:15]} Rxd7 {[%emt 0:00:48]} 35. Rxd7 {[%emt 0:00:02]} Qxb5 {[%emt 0:00:37][%mdl 4096] Endgame. KQR-KQR} 36. Rc7 {[%emt 0:02:27] Black must now prevent Qf6.} Re8 $1 {[%emt 0:06:39]} 37. Qc3 {[%emt 0:03:11]} a4 {[%emt 0:01:54]} 38. Rxc5 {[%emt 0:00:45]} ({Not} 38. bxa4 $2 Qb1+ 39. Kh2 Qb8 40. Qxc5 Rc8 $19) 38... Qxb3 {[%emt 0:00:14]} 39. Qxb3 {[%emt 0:00:09]} axb3 {[%emt 0:00:04] KR-KR} 40. Rb5 {[%emt 0:00:08]} Rc8 {[%emt 0:00:28]} 41. Rxb3 {[%emt 0:00:15]} Rc1+ {[%emt 0:00:05]} 42. Kh2 {[%emt 0:00:16]} Rc2 {[%emt 0:00:57]} 43. f3 {[%emt 0:00:02][%cal Bf2f3,Bf3f4][%mdl 32]} Kg7 {[%emt 0:03:26] The position is equal.} 44. Rb4 {[%emt 0:00:03]} g5 {[%emt 0:01:17]} 45. f4 {[%emt 0:01:42]} f6 {[%emt 0:02:59]} 46. f5 {[%emt 0:01:03]} Rf2 {[%emt 0:01:01]} 47. e4 {[%emt 0:00:16]} Rf4 {[%emt 0:00:03]} 48. Rb7+ {[%emt 0:03:57]} Kf8 {[%emt 0:00:05]} 49. Rb6 {[%emt 0:00:04]} Kf7 {[%emt 0:00:08]} 50. Rb7+ {[%emt 0:03:44]} Kf8 {[%emt 0:00:10]} 51. Rb4 {[%emt 0:00:06]} Kf7 {[%emt 0:01:19]} 52. Kg1 {[%emt 0:00:40]} Kf8 {[%emt 0:00:31]} 53. Kh2 {[%emt 0:02:54]} Kf7 {[%emt 0:00:07]} 54. g4 {[%emt 0:00:20]} hxg3+ {[%emt 0:03:39]} 55. Kxg3 {[%emt 0:00:06]} Kf8 {[%emt 0:00:17]} 56. Rb6 {[%emt 0:02:04]} Kf7 {[%emt 0:00:11]} 57. Re6 {[%emt 0:00:04]} Kg7 {[%emt 0:00:15] Weighted Error Value: White=0.05 (flawless) /Black=0.06 (flawless) .  Mistake:       	---       	Black=1      Inaccurate:     	White=4     	Black=3      OK:         	White=15    	Black=15     Best:        	White=6     	Black=3      Strong:       	---       	Black=1} 1/2-1/2

[Event "1000GM Schev-C-A February 2024"]
[Site "Santa Clara"]
[Date "2024.02.25"]
[Round "3.5"]
[White "Zhou, Ruoyu"]
[Black "Delgado Ramirez, Neuris"]
[Result "1/2-1/2"]
[ECO "B61"]
[WhiteElo "2112"]
[BlackElo "2517"]
[Annotator "TA"]
[PlyCount "80"]
[EventDate "2024.02.13"]
[EventType "schev"]
[EventCountry "USA"]
[SourceTitle "playchess.com"]
[Source "ChessBase"]
[SourceQuality "1"]
[TimeControl "5400+30"]

{[%evp 14,80,67,32,41,49,56,43,50,59,56,43,58,46,37,37,53,14,37,28,36,9,35,43,44,40,45,42,35,0,0,0,0,0,39,0,0,0,16,0,12,9,4,6,18,18,27,18,22,18,58,52,59,8,60,53,66,17,17,17,17,17,19,0,17,0,18,0,1215]} 1. e4 {[%emt 0:00:31]} c5 {[%emt 0:01:41]} 2. Nf3 {[%emt 0:00:08]} Nc6 {[%emt 0:00:05]} 3. d4 {[%emt 0:00:10]} cxd4 {[%emt 0:00:14]} 4. Nxd4 {[%emt 0:00:10]} Nf6 {[%emt 0:00:23]} 5. Nc3 {[%emt 0:00:10]} d6 {[%emt 0:00:06]} 6. Bg5 {[%emt 0:00:05]} Bd7 {[%emt 0:00:15]} 7. Qd2 {[%emt 0:00:09]} Rc8 {[%emt 0:00:11]} 8. f3 {[%emt 0:00:18] White is more active.} Nxd4 {[%emt 0:00:33]} 9. Qxd4 {[%emt 0:00:08]} Qa5 {[%emt 0:00:31]} 10. h4 {[%emt 0:00:12]} a6 {[%emt 0:00:44] White is slightly better.} 11. O-O-O {[%emt 0:06:48]} h6 {[%emt 0:00:41]} 12. Be3 {[%emt 0:00:16]} e5 {[%emt 0:00:33]} 13. Qb6 {[%emt 0:07:17]} Qxb6 {[%emt 0:00:27]} 14. Bxb6 {[%emt 0:00:03]} Be7 {[%emt 0:00:35]} 15. Bd3 {[%emt 0:03:15]} Be6 {[%emt 0:00:53]} 16. Be3 {[%emt 0:02:47]} Bd8 {[%emt 0:00:48]} 17. Kb1 {[%emt 0:13:08]} Nd7 {[%emt 0:01:42]} 18. Be2 {[%emt 0:03:04]} Ke7 {[%emt 0:00:05]} 19. Nd5+ {[%emt 0:05:55]} Bxd5 {[%emt 0:00:08]} 20. Rxd5 {[%emt 0:01:02]} Bb6 {[%emt 0:00:10]} 21. Bxb6 {[%emt 0:01:25]} Nxb6 {[%emt 0:00:14]} 22. Rd2 {[%emt 0:00:28]} Rhd8 {[%emt 0:01:40]} 23. Rhd1 {[%emt 0:01:57]} Rc6 {[%emt 0:00:36]} 24. c3 {[%emt 0:01:38]} Nd7 {[%emt 0:00:07]} 25. Bd3 {[%emt 0:01:59]} Nf6 {[%emt 0:00:31]} 26. Bc2 {[%emt 0:01:19]} g5 {[%emt 0:02:04]} 27. hxg5 {[%emt 0:01:11]} hxg5 {[%emt 0:00:04]} 28. Rh1 {[%emt 0:00:16]} Rcc8 {[%emt 0:00:29]} 29. g4 {[%emt 0:01:39]} Rh8 {[%emt 0:00:24]} 30. Rdh2 {[%emt 0:00:16]} Rxh2 {[%emt 0:01:15]} 31. Rxh2 $11 {[%emt 0:00:02][%mdl 4096] Endgame. KRB-KRN} Rg8 {[%emt 0:01:25]} 32. Bb3 {[%emt 0:01:21]} Rg6 {[%emt 0:01:14][%cal Od6d5]} 33. Kc2 {[%emt 0:01:58]} (33. Kc1 $14) 33... Rg8 {[%emt 0:01:45]} ({Better is} 33... d5 $1 $11 34. exd5 (34. Bxd5 Nxd5 35. exd5 Rf6 $11) 34... e4) 34. Kd3 {[%emt 0:00:49]} Rc8 {[%emt 0:00:17]} 35. Ke3 {[%emt 0:02:38]} (35. a4 $14) 35... b5 {[%emt 0:01:40] The position is equal.} 36. a3 {[%emt 0:04:09]} a5 {[%emt 0:00:19]} 37. Kd3 {[%emt 0:02:56]} Rb8 {[%emt 0:00:44]} 38. Ke3 {[%emt 0:04:51]} Rc8 {[%emt 0:03:00]} 39. Kd3 {[%emt 0:01:23]} Rb8 {[%emt 0:01:23]} 40. Ke3 {[%emt 0:32:39]} Ke8 $2 {[%mdl 40960] Weighted Error Value: White=0.14 (very precise) /Black=0.10 (very precise) .  Loses game:     	---       	Black=1      Mistake:       	White=2     	Black=1      Inaccurate:     	White=4     	Black=3      OK:         	White=9     	Black=12    . An unexpected result.} (40... Rc8 $11) 1/2-1/2

[Event "1000GM Schev-C-A February 2024"]
[Site "Santa Clara"]
[Date "2024.02.25"]
[Round "4.1"]
[White "Jimenez Garcia, Emmanuel"]
[Black "Tang, Dylan"]
[Result "1-0"]
[ECO "D05"]
[WhiteElo "2394"]
[BlackElo "2206"]
[Annotator "TA"]
[PlyCount "59"]
[EventDate "2024.02.13"]
[EventType "schev"]
[EventCountry "USA"]
[SourceTitle "playchess.com"]
[Source "ChessBase"]
[SourceQuality "1"]
[TimeControl "5400+30"]

{[%evp 9,59,1,10,7,13,8,0,5,13,10,23,19,20,8,18,0,0,0,9,0,0,0,48,46,77,67,212,215,413,426,525,502,485,0,426,414,514,481,501,503,503,493,529,528,29993,29994,29994,29995,29995,29996,29996,29997]} 1. Nf3 {[%emt 0:00:22]} d5 {[%emt 0:02:27]} 2. e3 {[%emt 1:31:08]} Nf6 {[%emt 0:02:02]} 3. d4 {[%emt 0:00:00]} e6 {[%emt 0:00:31]} 4. b3 {[%emt 0:00:00]} c5 {[%emt 0:03:04]} 5. Bd3 {[%emt 0:00:00]} Be7 {[%emt 0:00:37]} 6. O-O {[%emt 0:00:00]} O-O {[%emt 0:00:19]} 7. Nbd2 {[%emt 0:00:00]} b6 {[%emt 0:02:01]} 8. Bb2 {[%emt 0:00:00] The position is equal.} Nbd7 {[%emt 0:06:35]} 9. Qe2 {[%emt 0:00:00]} Bb7 {[%emt 0:04:35]} 10. Rfd1 {[%emt 0:00:00]} Rc8 {[%emt 0:16:38]} 11. c4 {[%emt 0:00:00]} cxd4 {[%emt 0:01:24]} 12. exd4 {[%emt 0:00:00]} Rc7 {[%emt 0:00:25]} 13. a4 {[%emt 0:00:00]} a5 {[%emt 0:01:22]} 14. Nb1 {[%emt 0:00:00][%cal Bd2b1,Bb1c3,Bc3b5,Bb5c7][%mdl 32]} Qa8 {[%emt 0:07:32]} 15. Nc3 {[%emt 0:00:00]} Nb8 {[%emt 0:03:13]} (15... Rcc8 $11) 16. Nb5 {[%emt 0:00:00]} Rd7 {[%emt 0:00:46]} 17. Ne5 {[%emt 0:00:00] White is much more active.} dxc4 {[%emt 0:02:27]} ({Better is} 17... Rdd8 $1 $14) 18. bxc4 $18 {[%emt 0:00:00]} Rdd8 $2 {[%emt 0:05:55] [#]} (18... Bb4 19. Nxd7 Nbxd7) 19. d5 $1 {[%emt 0:00:00][%mdl 512]} exd5 {[%emt 0:11:15]} (19... Bc8 20. d6) 20. Nc7 {[%emt 0:00:00]} Qa7 {[%emt 0:00:30]} 21. Nb5 {[%emt 0:00:00]} Qa8 {[%emt 0:00:06]} 22. Ng4 {[%emt 0:00:00] Black must now prevent Bxf6.} ({Weaker is} 22. Nc7 Qa7 23. Ng4 Nxg4 24. Bxg7 (24. Qxe7 d4 $18) 24... Bf6 $18 (24... Kxg7 25. Qxg4+ Kh6 26. Qh3+)) 22... Nxg4 {[%emt 0:03:22]} 23. Qxg4 {[%emt 0:00:00][%csl Gb2][%cal Rg4g7]} g6 {[%emt 0:02:01]} 24. Nc7 {[%emt 0:00:00]} Qa7 {[%emt 0:00:30]} 25. cxd5 {[%emt 0:00:00]} Nd7 {[%emt 0:01:00]} 26. Qf4 {[%emt 0:00:00] Prevents Bf6. And now d6 would win.} Nc5 {[%emt 0:07:31]} 27. Qh6 {[%emt 0:00:00][%csl Gb2][%cal Rh6g7] White mates.} f6 {[%emt 0:00:27] [#]} 28. Bxg6 $1 {[%emt 0:00:00][%mdl 512]} hxg6 {[%emt 0:00:17]} 29. Qxg6+ {[%emt 0:00:00]} Kh8 {[%emt 0:00:06]} 30. Rd4 {[%emt 0:00:00] Weighted Error Value: White=0.25 (precise) /Black=0.51.  Mistake:       	---       	Black=3      Inaccurate:     	---       	Black=2      OK:         	White=11    	Black=11     Best:        	White=1     	---} 1-0

[Event "1000GM Schev-C-A February 2024"]
[Site "Santa Clara"]
[Date "2024.02.25"]
[Round "4.2"]
[White "Cardoso Cardoso, Jose Gabriel"]
[Black "Min, Ryan"]
[Result "1-0"]
[ECO "C76"]
[WhiteElo "2477"]
[BlackElo "2063"]
[Annotator "TA"]
[PlyCount "121"]
[EventDate "2024.02.13"]
[EventType "schev"]
[EventCountry "USA"]
[SourceTitle "playchess.com"]
[Source "ChessBase"]
[SourceQuality "1"]
[TimeControl "5400+30"]

{[%evp 17,121,33,42,31,51,41,39,15,10,0,22,-14,9,0,0,-10,5,-14,36,29,58,52,52,43,58,58,121,46,87,64,258,253,249,280,404,390,446,306,438,448,465,437,479,444,463,428,449,436,560,543,641,673,681,717,746,702,730,716,833,831,831,823,818,779,1002,1002,993,802,1470,1359,1470,1228,1488,1235,1521,1537,1374,1461,1370,1287,29973,29974,29974,29974,29970,29971,29970,29971,29975,29975,29975,29976,29976,29977,29977,29978,29978,29977,29979,29978,29978,29979,29979,29980,29982,29981]} 1. e4 {[%emt 0:05:51]} e5 {[%emt 0:00:03]} 2. Nf3 {[%emt 0:00:26]} Nc6 {[%emt 0:00:06]} 3. Bb5 {[%emt 0:00:18]} a6 {[%emt 0:00:03]} 4. Ba4 {[%emt 0:00:08]} d6 {[%emt 0:00:04]} 5. O-O {[%emt 0:00:21]} Bd7 {[%emt 0:00:02]} 6. c3 {[%emt 0:00:22]} g6 {[%emt 0:00:04]} 7. d4 {[%emt 0:00:21]} Bg7 {[%emt 0:00:04]} 8. Re1 {[%emt 0:01:07]} Nge7 {[%emt 0:00:13]} 9. h3 {[%emt 0:05:36]} O-O {[%emt 0:00:08]} 10. Be3 {[%emt 0:00:23]} b6 {[%emt 0:00:21]} 11. Nbd2 {[%emt 0:05:53]} Qe8 {[%emt 0:00:21][%cal Oc6d4]} 12. d5 {[%emt 0:17:14] White is slightly better.} Nb8 {[%emt 0:00:42]} 13. Bxd7 {[%emt 0:00:08]} Nxd7 {[%emt 0:00:04]} 14. a4 {[%emt 0:00:05]} h6 {[%emt 0:03:06]} 15. a5 {[%emt 0:02:31]} b5 {[%emt 0:00:37]} 16. Nh2 {[%emt 0:02:28]} f5 {[%emt 0:00:48] [#] And now ...f4 would win.} 17. f3 $1 {[%emt 0:00:05]} f4 {[%emt 0:02:23]} (17... Nf6 $11) 18. Bf2 $14 {[%emt 0:00:03]} g5 {[%emt 0:00:08]} 19. b4 {[%emt 0:00:32]} h5 {[%emt 0:06:11]} 20. c4 {[%emt 0:01:16]} Nf6 {[%emt 0:00:12]} 21. Rc1 {[%emt 0:02:26]} Rc8 {[%emt 0:02:05]} (21... bxc4 $14 22. Rxc4 (22. Nxc4 Qd7 $16) 22... Qd7) 22. Rc3 {[%emt 0:00:44]} (22. Qe2 $16) 22... Kh8 {[%emt 0:02:29]} 23. Qc2 {[%emt 0:01:47]} Qg6 $2 {[%emt 0:18:12] A mistake that costs the game.} (23... c6 $14) 24. cxb5 $18 {[%emt 0:01:54]} axb5 {[%emt 0:00:08]} 25. a6 {[%emt 0:01:39][%cal Ba5a6,Ba6a7][%mdl 32]} (25. Rxc7 $6 Nfxd5 26. Rxc8 Rxc8 $16) 25... Bh6 {[%emt 0:02:52]} (25... c6 $142 26. dxc6 Ra8) 26. a7 {[%emt 0:04:34]} (26. Rxc7 Nfxd5 27. Rxc8 Rxc8 $18) 26... Rg8 {[%emt 0:01:42]} 27. Qd3 {[%emt 0:01:57]} g4 {[%emt 0:18:28]} (27... Qe8 $142 28. Rec1 Qd7) 28. hxg4 {[%emt 0:00:53]} (28. Qxb5 $2 {perishes.} gxh3 29. Qf1 hxg2 $19 (29... Qxg2+ 30. Qxg2 Rxg2+ 31. Kh1 $19)) 28... hxg4 {[%emt 0:02:30]} 29. Nxg4 {[%emt 0:00:37]} (29. Qxb5 g3 30. Ng4 gxf2+ 31. Kxf2 Nxg4+ 32. fxg4 Qxg4 $11) 29... Nxg4 {[%emt 0:06:45]} 30. fxg4 {[%emt 0:00:04]} f3 {[%emt 0:00:18]} 31. Nxf3 {[%emt 0:04:52] Black must now prevent g5.} Qxg4 {[%emt 0:00:09]} 32. Nh4 {[%emt 0:00:09]} (32. Qxb5 $2 Qxg2#) 32... Ra8 {[%emt 0:14:23]} 33. Rxc7 {[%emt 0:02:09]} Ng6 {[%emt 0:03:11][%cal Be7g6,Bg6f4,Bf4d3][%mdl 32]} 34. Qf3 {[%emt 0:02:02]} Qxf3 {[%emt 0:05:37]} 35. Nxf3 {[%emt 0:00:12]} Nf4 {[%emt 0:00:11]} 36. g3 {[%emt 0:01:18]} Nd3 {[%emt 0:02:57]} 37. Rd1 {[%emt 0:00:10]} Nxb4 {[%emt 0:01:27]} 38. Kg2 {[%emt 0:00:26] Hoping for Rh1.} Rg7 {[%emt 0:00:47]} 39. Rxg7 {[%emt 0:00:09]} Kxg7 {[%emt 0:00:27]} 40. Rb1 {[%emt 0:00:07]} Nd3 {[%emt 0:00:23]} 41. Rxb5 {[%emt 0:00:05]} Nxf2 {[%emt 0:00:33]} 42. Rb7+ {[%emt 0:00:04]} Kf6 {[%emt 0:00:09]} 43. Kxf2 {[%emt 0:00:03][%mdl 4096] Endgame. KRB-KRN} Bc1 {[%emt 0:00:15]} 44. g4 {[%emt 0:02:32]} Kg6 {[%emt 0:01:42]} 45. Rd7 {[%emt 0:01:23]} Ba3 {[%emt 0:00:11]} 46. Kg3 {[%emt 0:00:12]} Bc5 {[%emt 0:00:59]} 47. Nh4+ {[%emt 0:00:48]} Kf6 {[%emt 0:00:21]} 48. Nf5 {[%emt 0:00:07]} Rxa7 {[%emt 0:01:33]} 49. Rxa7 {[%emt 0:00:08] White mates.} Bxa7 {[%emt 0:00:03]} 50. Nxd6 {[%emt 0:00:07] KB-KN} Be3 {[%emt 0:00:19] [#]} 51. Kf3 $1 {[%emt 0:00:44]} Bf4 {[%emt 0:00:19]} 52. Nb5 {[%emt 0:01:09]} Ke7 {[%emt 0:00:24]} 53. Nc7 {[%emt 0:00:06]} Bc1 {[%emt 0:00:18]} 54. Ne6 {[%emt 0:00:02]} Ba3 {[%emt 0:00:30]} 55. g5 {[%emt 0:00:08]} Kf7 {[%emt 0:00:05]} 56. Kg4 {[%emt 0:00:55]} Kg6 {[%emt 0:00:08]} 57. Nd8 {[%emt 0:00:40]} Be7 {[%emt 0:01:10]} 58. Nb7 {[%emt 0:00:25]} Bxg5 {[%emt 0:00:51]} 59. d6 {[%emt 0:00:04]} Bf6 {[%emt 0:00:13]} 60. d7 {[%emt 0:00:04]} Kf7 {[%emt 0:00:12]} 61. d8=Q {[%emt 0:00:09] Weighted Error Value: White=0.17 (very precise) /Black=0.48.  Loses game:     	---       	Black=1      Mistake:       	White=1     	Black=4      Inaccurate:     	White=2     	Black=2      OK:         	White=6     	Black=8      Best:        	White=2     	---        Strong:       	White=1     	---} 1-0

[Event "1000GM Schev-C-A February 2024"]
[Site "Santa Clara"]
[Date "2024.02.25"]
[Round "4.3"]
[White "Atwell, Rose"]
[Black "Zuluaga Mancilla, Cesar"]
[Result "0-1"]
[ECO "B22"]
[WhiteElo "2104"]
[BlackElo "2251"]
[Annotator "RC"]
[PlyCount "196"]
[EventDate "2024.02.13"]
[EventType "schev"]
[EventCountry "USA"]
[SourceTitle "playchess.com"]
[Source "ChessBase"]
[SourceQuality "1"]
[TimeControl "5400+30"]

1. e4 {[%emt 0:00:01]} c5 {[%emt 0:11:49]} 2. Nf3 {[%emt 0:00:06]} e6 {[%emt 0:00:14]} 3. c3 {[%emt 0:00:05]} d5 {[%emt 0:03:45]} 4. exd5 {[%emt 0:00:05]} Qxd5 {[%emt 0:00:19]} 5. d4 {[%emt 0:00:20]} Nf6 {[%emt 0:00:56]} 6. Na3 {[%emt 0:02:01]} Qd8 {[%emt 0:01:52]} 7. Nc2 {[%emt 0:03:18]} Nc6 {[%emt 0:01:55]} 8. Bd3 {[%emt 0:03:15]} cxd4 {[%emt 0:01:30]} 9. Ncxd4 {[%emt 0:00:33]} Bd7 {[%emt 0:00:22]} 10. O-O {[%emt 0:04:45]} Be7 {[%emt 0:02:21]} 11. Nxc6 {[%emt 0:04:43]} Bxc6 {[%emt 0:00:24]} 12. Ne5 {[%emt 0:00:14]} Qd5 {[%emt 0:01:22]} 13. Nxc6 {[%emt 0:00:38]} Qxc6 {[%emt 0:00:07]} 14. Qc2 {[%emt 0:07:25]} O-O {[%emt 0:00:35]} 15. Bg5 {[%emt 0:02:15]} h6 {[%emt 0:00:07]} 16. Bh4 {[%emt 0:04:29]} Rfd8 {[%emt 0:00:40]} 17. Rad1 {[%emt 0:02:12]} Rac8 {[%emt 0:00:12]} 18. Qe2 {[%emt 0:01:55]} Qa4 {[%emt 0:03:54]} 19. Bxf6 {[%emt 0:05:53]} Bxf6 {[%emt 0:00:10]} 20. Bb1 {[%emt 0:01:13]} Qc6 {[%emt 0:03:45]} 21. g3 {[%emt 0:03:27]} g6 {[%emt 0:01:09]} 22. Qe3 {[%emt 0:05:24]} Rxd1 {[%emt 0:03:06]} 23. Rxd1 {[%emt 0:00:07]} Qa4 {[%emt 0:00:08]} 24. b3 {[%emt 0:06:05]} Qg4 {[%emt 0:01:50]} 25. f3 {[%emt 0:05:40]} Qh3 {[%emt 0:25:28]} 26. c4 {[%emt 0:12:28]} Be7 {[%emt 0:03:02]} 27. Kh1 {[%emt 0:00:16]} Bc5 {[%emt 0:02:36]} 28. Qe2 {[%emt 0:01:51]} b6 {[%emt 0:03:15]} 29. Rd7 {[%emt 0:01:04]} a5 {[%emt 0:07:33]} 30. Bd3 {[%emt 0:01:59]} Qh5 {[%emt 0:01:15]} 31. Kg2 {[%emt 0:00:39]} Qg5 {[%emt 0:00:11]} 32. h4 {[%emt 0:01:45]} Qf6 {[%emt 0:02:23]} 33. h5 {[%emt 0:00:50]} gxh5 {[%emt 0:00:51]} 34. Qe4 {[%emt 0:00:49]} Qg7 {[%emt 0:01:38]} 35. Kh3 {[%emt 0:00:53]} Bf2 {[%emt 0:00:54]} 36. Qf4 {[%emt 0:00:44]} Rf8 {[%emt 0:02:10]} 37. Kg2 {[%emt 0:04:05]} Be1 {[%emt 0:04:01]} 38. Kh3 {[%emt 0:00:26]} Bf2 {[%emt 0:03:46]} 39. Kg2 {[%emt 0:00:43]} Bc5 {[%emt 0:00:15]} 40. Qe4 {[%emt 0:01:34]} Re8 {[%emt 0:00:34]} 41. Rd5 {[%emt 0:03:49]} h4 {[%emt 0:02:26]} 42. g4 {[%emt 0:00:06]} Be7 {[%emt 0:01:55]} 43. Rd7 {[%emt 0:00:39]} Bc5 {[%emt 0:01:28]} 44. Kh3 {[%emt 0:00:34]} Bf2 {[%emt 0:00:32]} 45. f4 {[%emt 0:01:16]} Kf8 {[%emt 0:00:37]} 46. Qh7 {[%emt 0:05:23]} Qf6 {[%emt 0:01:20]} 47. Be4 {[%emt 0:02:25]} Qg7 {[%emt 0:01:37]} 48. g5 {[%emt 0:00:37]} hxg5 {[%emt 0:00:17]} 49. fxg5 {[%emt 0:00:05]} Qxh7 {[%emt 0:00:28]} 50. Bxh7 {[%emt 0:00:02]} Re7 {[%emt 0:00:32]} 51. Rd8+ {[%emt 0:01:06]} Kg7 {[%emt 0:00:01]} 52. Be4 {[%emt 0:00:02]} f5 {[%emt 0:00:33]} 53. gxf6+ {[%emt 0:00:14]} Kxf6 {[%emt 0:00:06]} 54. Rf8+ {[%emt 0:00:34]} Rf7 {[%emt 0:00:02]} 55. Rxf7+ {[%emt 0:00:09]} Kxf7 {[%emt 0:00:02]} 56. Kg2 {[%emt 0:00:25]} Bc5 {[%emt 0:00:09]} 57. Kf3 {[%emt 0:00:29]} Kf6 {[%emt 0:00:06]} 58. Kf4 {[%emt 0:00:37]} Bd6+ {[%emt 0:00:05]} 59. Ke3 {[%emt 0:00:20]} Ke5 {[%emt 0:00:09]} 60. Bg2 {[%emt 0:00:06]} Bc5+ {[%emt 0:00:26]} 61. Kf3 {[%emt 0:00:42]} Kd4 {[%emt 0:00:21]} 62. Kg4 {[%emt 0:00:17]} Be7 {[%emt 0:00:08]} 63. Bc6 {[%emt 0:00:26]} Kd3 {[%emt 0:03:17]} 64. Kf4 {[%emt 0:01:25]} Bd6+ {[%emt 0:00:20]} 65. Kg4 {[%emt 0:00:05]} Bg3 {[%emt 0:00:05]} 66. Bb7 {[%emt 0:01:36]} Ke3 {[%emt 0:02:42]} 67. Bc8 {[%emt 0:00:36]} e5 {[%emt 0:00:05]} 68. Bb7 {[%emt 0:00:02]} Kd4 {[%emt 0:00:19]} 69. Kf5 {[%emt 0:00:20]} a4 {[%emt 0:00:54]} 70. bxa4 {[%emt 0:00:23]} Kxc4 {[%emt 0:00:09]} 71. Kg4 {[%emt 0:00:28]} Kb4 {[%emt 0:00:11]} 72. Bc6 {[%emt 0:00:04]} Ka3 {[%emt 0:00:07]} 73. Kf3 {[%emt 0:01:48]} Kxa2 {[%emt 0:00:11]} 74. Be4 {[%emt 0:00:10]} Kb3 {[%emt 0:00:09]} 75. Bc6 {[%emt 0:00:05]} Kb4 {[%emt 0:00:05]} 76. Kg4 {[%emt 0:00:13]} Kc5 {[%emt 0:00:54]} 77. Bb7 {[%emt 0:00:03]} Kd4 {[%emt 0:00:13]} 78. Kf3 {[%emt 0:00:07]} Be1 {[%emt 0:00:32]} 79. Ba8 {[%emt 0:00:35]} Bb4 {[%emt 0:01:21]} 80. Bc6 {[%emt 0:00:46]} Be7 {[%emt 0:00:20]} 81. Bb7 {[%emt 0:00:11]} Bd6 {[%emt 0:00:27]} 82. Kg4 {[%emt 0:00:37]} Be7 {[%emt 0:01:22]} 83. Kf5 {[%emt 0:00:05]} Bd8 {[%emt 0:00:40]} 84. Bg2 {[%emt 0:00:10]} Be7 {[%emt 0:00:32]} 85. Bb7 {[%emt 0:00:04]} Bb4 {[%emt 0:00:49]} 86. Ba8 {[%emt 0:00:46]} Bd6 {[%emt 0:00:27]} 87. Bg2 {[%emt 0:00:26]} Ke3 {[%emt 0:00:09]} 88. Kg4 {[%emt 0:00:19]} Be7 {[%emt 0:01:10]} 89. Kf5 {[%emt 0:00:07]} Kf2 {[%emt 0:00:18]} 90. Bc6 {[%emt 0:00:25]} h3 {[%emt 0:00:20]} 91. Kxe5 {[%emt 0:01:08]} h2 {[%emt 0:00:18]} 92. Kd4 {[%emt 0:00:37]} Bb4 {[%emt 0:00:24]} 93. Kc4 {[%emt 0:00:06]} Ba5 {[%emt 0:00:03]} 94. Kd3 {[%emt 0:01:06]} Kg1 {[%emt 0:00:08]} 95. Ke2 {[%emt 0:00:01]} h1=Q {[%emt 0:00:21]} 96. Bxh1 {[%emt 0:00:05]} Kxh1 {[%emt 0:00:12]} 97. Kf1 {[%emt 0:00:03]} Kh2 {[%emt 0:00:09]} 98. Kf2 {[%emt 0:00:02]} Bb4 {[%emt 0:00:18]} 0-1